bitfinex-derivatives/quotes_BTCF0:USTF0_20220103
["timestamp","ask_amount","ask_price","bid_price","bid_amount"]
[1641208515843,1.43936372,47346.0,47345.0,0.32333567]
[1641208517148,1.43936372,47346.0,47345.0,0.14033567]
[1641208517948,0.02,47348.0,47345.0,0.32333567]
[1641208519148,0.02,47348.0,47345.0,0.14033567]
[1641208519348,1.4394596,47346.0,47345.0,1.25233567]
[1641208519751,1.4394596,47346.0,47345.0,0.14033567]
[1641208519949,1.4394596,47346.0,47345.0,1.43933567]
[1641208520150,1.4394596,47346.0,47345.0,1.61933567]
[1641208520366,1.4394596,47347.0,47345.0,1.43833567]
[1641208520763,1.4394596,47347.0,47345.0,0.32633567]
[1641208521164,1.4594596,47348.0,47345.0,0.14033567]
[1641208521864,1.4594596,47348.0,47347.0,0.14033567]
[1641208522064,0.02,47348.0,47347.0,0.14033567]
[1641208522268,1.21777717,47348.0,47347.0,0.14033567]
[1641208523067,0.02,47348.0,47347.0,0.14033567]
[1641208523966,0.02,47348.0,47347.0,0.32133567]
[1641208524666,1.21777717,47348.0,47347.0,0.32133567]
[1641208525168,1.21777717,47348.0,47347.0,0.14033567]
[1641208525969,1.21777717,47348.0,47347.0,0.32133567]
[1641208527170,1.21777717,47348.0,47347.0,0.14033567]
[1641208528071,1.21777717,47348.0,47347.0,0.32133567]
[1641208529274,1.21777717,47348.0,47347.0,0.14033567]
[1641208529878,1.21777717,47348.0,47347.0,0.32133567]
[1641208530777,0.02,47348.0,47347.0,0.32133567]
[1641208531178,0.02,47348.0,47347.0,0.14033567]
[1641208531876,0.02,47348.0,47347.0,0.32133567]
[1641208532077,1.21777717,47348.0,47347.0,0.32133567]
[1641208532679,0.02,47348.0,47347.0,0.32133567]
[1641208533281,0.02,47348.0,47347.0,0.14133567]
[1641208533479,1.4594243,47348.0,47347.0,0.14133567]
[1641208533678,1.4594243,47348.0,47347.0,0.14033567]
[1641208533879,1.4594243,47348.0,47347.0,0.32433567]
[1641208534179,1.4594243,47348.0,47347.0,1.43533567]
[1641208534484,1.4399353,47348.0,47347.0,1.67529539]
[1641208534680,1.55632537,47355.0,47347.0,1.6984136]
[1641208534883,1.55632537,47355.0,47354.0,1.292]
[1641208535182,1.55632537,47355.0,47354.0,1.36711]
[1641208535379,1.55632537,47355.0,47354.0,1.36911]
[1641208535583,1.55632537,47356.0,47354.0,1.438635]
[1641208535780,1.55632537,47356.0,47355.0,1.39388235]
[1641208536180,1.55632537,47356.0,47355.0,1.39288235]
[1641208536983,1.55632537,47356.0,47355.0,1.39388235]
[1641208537787,1.55632537,47356.0,47355.0,2.35320991]
[1641208537984,1.55632537,47369.0,47355.0,2.54620991]
[1641208538186,1.55632537,47369.0,47359.0,1.292]
[1641208538383,1.55632537,47369.0,47359.0,1.113]
[1641208538784,1.8887,47371.0,47359.0,1.113]
[1641208538785,3.44502537,47371.0,47359.0,1.113]
[1641208538984,3.44502537,47371.0,47359.0,1.112]
[1641208539184,3.44502537,47371.0,47359.0,1.292]
[1641208539387,1.55632537,47371.0,47359.0,1.294]
[1641208539585,1.55632537,47371.0,47359.0,1.63920709]
[1641208539987,1.55632537,47371.0,47359.0,1.97554276]
[1641208540187,1.55632537,47371.0,47359.0,1.97454276]
[1641208540390,1.55632537,47371.0,47359.0,1.97554276]
[1641208540588,1.55632537,47371.0,47359.0,1.62933567]
[1641208540787,1.43891625,47366.0,47359.0,2.58861317]
[1641208540989,1.43891625,47366.0,47359.0,3.39453225]
[1641208541187,1.43891625,47366.0,47359.0,3.19853225]
[1641208541388,1.43891625,47366.0,47359.0,3.01853225]
[1641208541587,1.43891625,47367.0,47359.0,3.01853225]
[1641208541989,1.43891625,47367.0,47359.0,2.10353225]
[1641208542192,1.43891625,47367.0,47359.0,3.21553225]
[1641208542994,1.43891625,47367.0,47359.0,3.21653225]
[1641208543193,1.43891625,47367.0,47359.0,3.01953225]
[1641208543393,0.1801,47370.0,47359.0,3.01953225]
[1641208543394,1.43891625,47366.0,47359.0,2.21361317]
[1641208543594,1.43891625,47366.0,47359.0,2.39261317]
[1641208543993,1.43891625,47366.0,47359.0,2.59061317]
[1641208544392,1.43891625,47366.0,47359.0,2.41061317]
[1641208545196,0.18,47362.0,47359.0,1.29761317]
[1641208545398,0.0011,47360.0,47359.0,1.10061317]
[1641208545595,0.0001,47360.0,47359.0,1.6744863]
[1641208545995,0.0001,47360.0,47359.0,1.8554863]
[1641208546695,0.0001,47360.0,47359.0,0.8962088]
[1641208547299,0.1801,47360.0,47359.0,0.14033567]
[1641208547897,0.1801,47360.0,47359.0,0.32233567]
[1641208549299,0.1801,47360.0,47359.0,0.14033567]
[1641208549499,0.1801,47360.0,47355.0,0.14033567]
[1641208549698,0.18,47356.0,47355.0,0.14033567]
[1641208550298,0.0001,47360.0,47355.0,0.14033567]
[1641208550498,0.18,47356.0,47355.0,0.14033567]
[1641208550701,0.18,47356.0,47351.0,0.02111852]
[1641208551100,0.07439,47357.0,47351.0,0.02111852]
[1641208551301,0.18,47356.0,47351.0,0.02111852]
[1641208551502,0.07439,47357.0,47351.0,0.02111852]
[1641208551701,0.18,47355.0,47351.0,0.02111852]
[1641208551902,0.18,47355.0,47351.0,0.20311852]
[1641208552602,0.14033567,47359.0,47351.0,0.20311852]
[1641208553206,0.18,47353.0,47351.0,0.20311852]
[1641208553403,0.009794,47352.0,47351.0,0.182]
[1641208553903,0.15012967,47352.0,47351.0,0.359]
[1641208555312,0.15012967,47352.0,47346.0,0.14033567]
[1641208555504,0.18,47348.0,47346.0,0.14033567]
[1641208555905,0.18,47348.0,47346.0,0.32533567]
[1641208556505,0.15012967,47352.0,47346.0,0.32533567]
[1641208556705,0.18,47348.0,47346.0,0.32533567]
[1641208557406,0.18,47350.0,47346.0,0.32533567]
[1641208557705,0.15012967,47352.0,47346.0,0.32533567]
[1641208557706,0.18,47348.0,47346.0,0.32533567]
[1641208557905,0.18,47348.0,47346.0,0.32233567]
[1641208558505,0.15012967,47352.0,47346.0,0.32233567]
[1641208558705,0.18,47348.0,47346.0,0.32233567]
[1641208558905,0.15012967,47352.0,47346.0,0.32233567]
[1641208559107,0.18,47348.0,47346.0,0.32233567]
[1641208559311,0.18,47348.0,47346.0,0.14033567]
[1641208559609,0.18,47351.0,47346.0,0.14033567]
[1641208560007,0.18,47348.0,47346.0,0.32433567]
[1641208560208,0.15012967,47352.0,47346.0,0.32433567]
[1641208560608,0.14033567,47352.0,47346.0,0.32433567]
[1641208560814,0.32033567,47352.0,47346.0,0.38555567]
[1641208561010,0.18,47357.0,47346.0,0.38555567]
[1641208561213,0.18,47352.0,47346.0,0.38555567]
[1641208561412,0.18,47357.0,47346.0,0.38555567]
[1641208561624,0.18,47353.0,47346.0,0.38555567]
[1641208561824,0.18,47357.0,47346.0,0.20155567]
[1641208562024,0.18,47353.0,47346.0,0.37755567]
[1641208562424,0.17243567,47359.0,47346.0,0.37755567]
[1641208562625,0.18,47349.0,47346.0,0.37755567]
[1641208563327,0.18,47349.0,47346.0,0.20155567]
[1641208563524,0.18,47349.0,47346.0,0.14033567]
[1641208563924,0.18,47349.0,47346.0,0.32333567]
[1641208564525,0.18,47349.0,47340.0,0.02112334]
[1641208564726,0.18,47345.0,47340.0,0.02112334]
[1641208564925,0.18,47345.0,47337.0,0.34462807]
[1641208564926,0.18,47342.0,47337.0,0.34462807]
[1641208565127,0.18,47339.0,47336.0,0.34716083]
[1641208565326,0.18,47337.0,47336.0,0.34716083]
[1641208566028,0.37,47337.0,47336.0,0.34716083]
[1641208566227,0.51033567,47337.0,47334.0,0.57487313]
[1641208566428,0.009794,47336.0,47331.0,0.0315]
[1641208566627,0.18,47333.0,47325.0,0.72262745]
[1641208567027,0.18,47333.0,47326.0,0.01199711]
[1641208567230,0.18,47333.0,47326.0,0.1319682]
[1641208567430,0.18,47333.0,47326.0,0.14110018]
[1641208567630,0.18,47333.0,47326.0,0.02112909]
[1641208567830,0.18,47327.0,47325.0,1.41126661]
[1641208568031,0.18,47327.0,47326.0,0.95978939]
[1641208569731,0.14033567,47328.0,47326.0,0.95978939]
[1641208569931,0.189,47327.0,47326.0,0.95978939]
[1641208571432,0.14033567,47328.0,47326.0,0.95978939]
[1641208571633,0.18,47327.0,47326.0,0.95978939]
[1641208571832,0.14033567,47328.0,47326.0,0.95978939]
[1641208572032,0.32933567,47328.0,47326.0,0.95978939]
[1641208573433,0.14033567,47328.0,47326.0,0.95978939]
[1641208573837,0.18,47327.0,47326.0,0.95978939]
[1641208574034,0.14033567,47328.0,47326.0,0.95978939]
[1641208574035,0.32933567,47328.0,47326.0,0.95978939]
[1641208574436,0.32933567,47328.0,47327.0,1.17267751]
[1641208574836,0.50933567,47328.0,47327.0,1.17267751]
[1641208575235,0.32933567,47328.0,47327.0,1.17267751]
[1641208575437,0.14033567,47328.0,47327.0,1.17267751]
[1641208575837,0.14033567,47328.0,47326.0,1.17267751]
[1641208576036,0.32733567,47328.0,47326.0,1.17267751]
[1641208576439,0.50733567,47328.0,47326.0,1.17267751]
[1641208577339,0.32033567,47328.0,47326.0,1.17267751]
[1641208578141,0.51812967,47328.0,47326.0,1.17267751]
[1641208578540,0.51812967,47328.0,47323.0,0.02]
[1641208579540,0.18,47324.0,47323.0,0.02]
[1641208580141,0.371,47324.0,47323.0,0.02]
[1641208581342,0.009794,47323.0,47314.0,0.02113467]
[1641208582141,0.200794,47323.0,47314.0,0.02113467]
[1641208582340,0.18,47317.0,47310.0,2.29668548]
[1641208582543,0.18,47311.0,47310.0,0.35078548]
[1641208582740,0.06706,47311.0,47310.0,0.35078548]
[1641208582941,0.06706,47311.0,47308.0,0.14033567]
[1641208583441,0.189794,47310.0,47306.0,0.35078548]
[1641208584140,0.189794,47310.0,47305.0,0.58464247]
[1641208584141,0.376794,47310.0,47305.0,0.58464247]
[1641208584344,0.14033567,47309.0,47303.0,0.35078548]
[1641208584740,0.14033567,47309.0,47304.0,0.12002191]
[1641208585542,0.14033567,47309.0,47299.0,0.37192668]
[1641208585742,0.18,47300.0,47299.0,0.18478548]
[1641208585945,0.09116,47300.0,47299.0,0.18478548]
[1641208586543,0.09116,47300.0,47297.0,0.58464247]
[1641208586744,0.09116,47300.0,47291.0,1.69664247]
[1641208586946,0.33133567,47309.0,47299.0,0.02114065]
[1641208587143,0.33133567,47309.0,47299.0,0.09693065]
[1641208587344,0.14033567,47309.0,47299.0,0.07579]
[1641208587544,0.14033567,47309.0,47300.0,0.0211409]
[1641208587945,0.14033567,47309.0,47300.0,0.2011409]
[1641208588146,0.33033567,47309.0,47300.0,0.2011409]
[1641208588347,0.33033567,47309.0,47300.0,0.0211409]
[1641208589448,0.14033567,47309.0,47300.0,0.0211409]
[1641208590047,0.33133567,47309.0,47300.0,0.0211409]
[1641208590451,0.33133567,47309.0,47303.0,0.18]
[1641208590649,0.33133567,47309.0,47305.0,1.13313882]
[1641208590950,0.14033567,47318.0,47308.0,1.31313708]
[1641208591150,0.14033567,47318.0,47312.0,0.18]
[1641208591349,0.14033567,47318.0,47312.0,0.25739]
[1641208591551,0.14033567,47318.0,47312.0,0.07739]
[1641208591747,0.14033567,47318.0,47314.0,1.37996661]
[1641208592749,0.14033567,47318.0,47316.0,1.37996661]
[1641208593147,0.14033567,47318.0,47314.0,0.18]
[1641208593349,0.14033567,47318.0,47315.0,2.07227238]
[1641208593548,0.14033567,47318.0,47315.0,0.96027238]
[1641208594150,0.14033567,47318.0,47316.0,0.96027238]
[1641208596253,0.14033567,47318.0,47317.0,1.41376808]
[1641208597254,0.14033567,47318.0,47317.0,2.37404046]
[1641208598154,0.14033567,47318.0,47317.0,2.56904046]
[1641208598756,0.14033567,47318.0,47317.0,0.195]
[1641208599456,0.14033567,47318.0,47317.0,0.96027238]
[1641208600059,0.14033567,47318.0,47317.0,1.15627238]
[1641208600256,0.14033567,47318.0,47317.0,1.60890362]
[1641208601258,0.14033567,47318.0,47317.0,2.373176]
[1641208602062,0.14033567,47318.0,47317.0,1.60790362]
[1641208602862,0.14033567,47318.0,47317.0,2.568176]
[1641208603461,0.14033567,47318.0,47317.0,2.373176]
[1641208604060,0.14033567,47318.0,47317.0,2.567176]
[1641208604261,0.14033567,47318.0,47317.0,1.60690362]
[1641208605062,0.14033567,47318.0,47317.0,1.15427238]
[1641208605462,0.14033567,47318.0,47317.0,0.96027238]
[1641208606062,0.14033567,47318.0,47317.0,1.15427238]
[1641208606362,0.14033567,47318.0,47317.0,1.01785291]
[1641208607162,0.14033567,47318.0,47317.0,1.15427238]
[1641208608062,0.14033567,47318.0,47317.0,1.35027238]
[1641208608262,0.14033567,47318.0,47317.0,1.15627238]
[1641208609462,0.14033567,47318.0,47317.0,0.96027238]
[1641208610064,0.14033567,47318.0,47317.0,1.15427238]
[1641208611463,0.14033567,47318.0,47317.0,1.78335882]
[1641208612165,0.14033567,47318.0,47317.0,1.01808644]
[1641208612864,0.14033567,47318.0,47317.0,1.97835882]
[1641208613462,0.14033567,47318.0,47317.0,1.78335882]
[1641208614161,0.14033567,47318.0,47317.0,1.97835882]
[1641208614362,0.14033567,47318.0,47317.0,0.195]
[1641208614761,0.14033567,47318.0,47317.0,1.15527238]
[1641208615565,0.14033567,47318.0,47317.0,0.96027238]
[1641208616163,0.14033567,47318.0,47317.0,1.15427238]
[1641208616366,0.14033567,47318.0,47317.0,0.194]
[1641208617363,0.14033567,47318.0,47316.0,1.78378561]
[1641208617564,0.14033567,47318.0,47317.0,1.54856227]
[1641208618168,0.14033567,47318.0,47317.0,0.78228989]
[1641208618365,0.14033567,47318.0,47317.0,0.194]
[1641208618968,0.14033567,47318.0,47317.0,1.15427238]
[1641208619268,0.14033567,47318.0,47317.0,1.74256227]
[1641208621170,0.14033567,47318.0,47317.0,0.194]
[1641208621470,0.14033567,47318.0,47316.0,0.58828989]
[1641208622069,0.14033567,47318.0,47316.0,0.78228989]
[1641208623069,0.14033567,47318.0,47316.0,0.194]
[1641208623372,0.14033567,47318.0,47317.0,0.96009517]
[1641208624069,0.14033567,47318.0,47317.0,1.14809517]
[1641208625070,0.14033567,47318.0,47317.0,1.21666517]
[1641208625483,0.14033567,47318.0,47317.0,2.20762076]
[1641208626181,0.14033567,47318.0,47317.0,2.39562076]
[1641208626581,0.14033567,47318.0,47317.0,1.21666517]
[1641208627383,0.14033567,47318.0,47317.0,1.02866517]
[1641208628184,0.14033567,47318.0,47317.0,1.21866517]
[1641208629486,0.14033567,47318.0,47317.0,1.02866517]
[1641208629686,0.14033567,47318.0,47317.0,0.96009517]
[1641208630086,0.14033567,47318.0,47317.0,1.15109517]
[1641208631091,0.14033567,47318.0,47317.0,0.191]
[1641208631486,0.14033567,47318.0,47315.0,1.29463931]
[1641208631687,0.14033567,47318.0,47317.0,0.96009517]
[1641208633397,0.14033567,47318.0,47315.0,1.48563931]
[1641208633398,0.14033567,47318.0,47315.0,1.29463931]
[1641208633797,0.14033567,47318.0,47317.0,0.96009517]
[1641208634498,0.14033567,47318.0,47315.0,1.48263931]
[1641208635197,0.14033567,47318.0,47316.0,0.96009517]
[1641208636100,0.27933567,47318.0,47316.0,1.15009517]
[1641208636800,0.27933567,47318.0,47317.0,2.13842989]
[1641208637802,1.47825331,47318.0,47317.0,0.96009517]
[1641208638001,1.33925331,47318.0,47317.0,0.96009517]
[1641208638200,1.49725331,47318.0,47317.0,1.14709517]
[1641208638901,0.29833567,47318.0,47317.0,2.32542989]
[1641208639503,0.14033567,47318.0,47317.0,2.13842989]
[1641208639902,0.14033567,47318.0,47317.0,0.96009517]
[1641208640104,0.14033567,47318.0,47317.0,1.15009517]
[1641208641405,0.14033567,47318.0,47317.0,0.96009517]
[1641208641607,0.14033567,47318.0,47317.0,2.13822764]
[1641208642107,0.28733567,47318.0,47317.0,2.32622764]
[1641208642807,0.28733567,47318.0,47317.0,1.36613247]
[1641208643008,0.46733567,47318.0,47317.0,1.36613247]
[1641208643207,0.46754704,47318.0,47317.0,0.96009517]
[1641208643407,0.46733567,47318.0,47317.0,0.96009517]
[1641208643713,0.35127176,47318.0,47303.0,1.52352443]
[1641208643908,0.18,47308.0,47303.0,1.52352443]
[1641208644107,0.24004,47308.0,47303.0,1.52352443]
[1641208644908,0.24004,47308.0,47299.0,2.53072855]
[1641208645110,0.14033567,47306.0,47299.0,2.53072855]
[1641208645708,0.36010994,47303.0,47295.0,0.18]
[1641208645908,0.36010994,47303.0,47301.0,0.0120048]
[1641208646510,0.36010994,47304.0,47301.0,0.0120048]
[1641208648213,0.148,47304.0,47301.0,0.0120048]
[1641208648614,0.148,47304.0,47302.0,1.41619122]
[1641208649422,0.14033567,47306.0,47302.0,1.41619122]
[1641208650229,0.30133567,47306.0,47302.0,1.58119122]
[1641208650420,0.30133567,47306.0,47303.0,1.41619122]
[1641208651120,0.30133567,47306.0,47302.0,1.58119122]
[1641208651525,0.14033567,47306.0,47302.0,1.41619122]
[1641208651920,0.36014752,47303.0,47300.0,1.55652689]
[1641208652121,0.36014752,47303.0,47302.0,0.156]
[1641208653525,0.36014752,47303.0,47300.0,1.55652689]
[1641208654230,0.174,47303.0,47301.0,1.41619122]
[1641208655333,0.53414752,47303.0,47300.0,1.73652689]
[1641208655530,0.36014752,47303.0,47300.0,1.55652689]
[1641208656131,0.54814752,47303.0,47300.0,1.70752689]
[1641208656632,0.36014752,47302.0,47300.0,0.29133567]
[1641208657531,0.36014752,47302.0,47300.0,0.14033567]
[1641208658332,0.54914752,47302.0,47300.0,0.26433567]
[1641208658732,0.36014752,47301.0,47300.0,0.26433567]
[1641208659542,0.36014752,47301.0,47300.0,0.14033567]
[1641208659742,0.36014752,47301.0,47298.0,1.41619122]
[1641208660143,0.36014752,47301.0,47300.0,0.92482283]
[1641208660345,0.52614752,47301.0,47300.0,1.09682283]
[1641208661549,0.96039339,47302.0,47299.0,1.41619122]
[1641208661749,0.36014752,47302.0,47299.0,1.41619122]
[1641208662148,0.36014752,47302.0,47299.0,1.58419122]
[1641208662349,0.54814752,47302.0,47299.0,1.58419122]
[1641208662548,0.54814752,47302.0,47300.0,0.01200508]
[1641208662848,0.54814752,47302.0,47299.0,1.58419122]
[1641208663048,0.54814752,47302.0,47300.0,0.92482283]
[1641208663755,0.36014752,47302.0,47300.0,0.92482283]
[1641208664052,0.36014752,47302.0,47301.0,0.92482283]
[1641208664250,0.53714752,47302.0,47301.0,0.92482283]
[1641208664449,0.177,47302.0,47301.0,0.92482283]
[1641208664649,0.177,47302.0,47301.0,0.93682774]
[1641208665352,0.177,47302.0,47301.0,0.92482283]
[1641208665551,0.36014752,47303.0,47301.0,0.92482283]
[1641208665753,0.14033567,47306.0,47301.0,1.51167536]
[1641208666358,0.32833567,47306.0,47301.0,1.51167536]
[1641208666559,0.32833567,47306.0,47301.0,0.58685253]
[1641208667061,0.32833567,47306.0,47302.0,0.35218557]
[1641208667557,0.14033567,47306.0,47302.0,0.35218557]
[1641208668358,0.32833567,47306.0,47302.0,0.35218557]
[1641208668957,0.32833567,47306.0,47301.0,0.35218557]
[1641208669657,0.14033567,47306.0,47301.0,0.35218557]
[1641208670263,0.32933567,47306.0,47301.0,0.35218557]
[1641208670458,0.18,47302.0,47301.0,0.35218557]
[1641208670762,0.189794,47302.0,47301.0,0.35218557]
[1641208671259,0.33012967,47302.0,47301.0,0.35218557]
[1641208671460,0.33012967,47302.0,47298.0,0.82159354]
[1641208671661,0.18,47299.0,47298.0,0.82159354]
[1641208672062,0.181,47299.0,47298.0,0.82159354]
[1641208672361,0.368,47299.0,47295.0,0.35275498]
[1641208672863,0.18,47297.0,47295.0,0.35275498]
[1641208673263,0.14033567,47296.0,47295.0,0.35275498]
[1641208673862,0.14033567,47296.0,47292.0,0.82159354]
[1641208674063,0.14033567,47296.0,47291.0,0.82159354]
[1641208674064,0.18,47293.0,47291.0,0.82159354]
[1641208674962,0.32133567,47296.0,47291.0,0.82159354]
[1641208675562,0.14033567,47296.0,47289.0,0.88909344]
[1641208675763,0.14033567,47296.0,47293.0,2.18055814]
[1641208675764,0.93040057,47295.0,47293.0,2.18055814]
[1641208676263,1.11140057,47295.0,47293.0,2.18055814]
[1641208676464,0.27105636,47295.0,47293.0,1.2914647]
[1641208677067,0.45105636,47295.0,47293.0,1.2914647]
[1641208677265,0.18,47294.0,47293.0,1.2914647]
[1641208677665,0.98067988,47296.0,47293.0,1.2914647]
[1641208677865,0.18,47294.0,47293.0,1.2914647]
[1641208678166,0.98067988,47296.0,47293.0,1.2914647]
[1641208678365,1.16167988,47296.0,47293.0,1.2914647]
[1641208678567,1.16167988,47296.0,47287.0,0.88909344]
[1641208678568,0.09005763,47294.0,47292.0,1.2914647]
[1641208679166,0.18,47293.0,47292.0,1.2914647]
[1641208680369,0.196,47293.0,47292.0,1.2914647]
[1641208680969,0.28605763,47293.0,47289.0,1.2914647]
[1641208681567,0.09005763,47293.0,47289.0,1.2914647]
[1641208681770,0.09005763,47293.0,47290.0,0.01200788]
[1641208682071,1.20046513,47294.0,47290.0,0.07862788]
[1641208682267,0.36025191,47291.0,47290.0,0.07862788]
[1641208682467,0.36025191,47291.0,47290.0,0.06662]
[1641208683069,0.36025191,47291.0,47290.0,1.35862]
[1641208683269,0.36025191,47291.0,47290.0,0.08776467]
[1641208683669,0.36025191,47291.0,47290.0,1.19976467]
[1641208683870,0.36025191,47293.0,47290.0,3.68504933]
[1641208684270,0.36025191,47293.0,47292.0,1.41719122]
[1641208684471,0.36025191,47295.0,47292.0,2.52919122]
[1641208684673,0.36025191,47295.0,47292.0,2.52819122]
[1641208685773,0.36025191,47295.0,47292.0,1.41619122]
[1641208686274,0.41025191,47295.0,47293.0,0.88909344]
[1641208686775,0.41025191,47295.0,47294.0,0.89009344]
[1641208687077,1.55632537,47315.0,47294.0,2.11165943]
[1641208687475,1.9189,47311.0,47307.0,0.18]
[1641208687676,1.27182463,47308.0,47307.0,1.38286729]
[1641208687875,1.55632537,47315.0,47307.0,1.38486729]
[1641208688076,1.55632537,47314.0,47309.0,0.001]
[1641208688276,1.55632537,47314.0,47309.0,0.002]
[1641208689077,1.55632537,47314.0,47309.0,1.1351353]
[1641208689277,1.55632537,47314.0,47309.0,0.0231353]
[1641208689478,1.55632537,47314.0,47309.0,0.16247097]
[1641208689881,1.55632537,47314.0,47309.0,1.05256441]
[1641208690081,0.38440628,47319.0,47309.0,1.05156441]
[1641208690378,0.38440628,47319.0,47310.0,0.18]
[1641208690580,0.38440628,47319.0,47309.0,1.23756441]
[1641208690779,0.18,47316.0,47309.0,1.21642911]
[1641208691281,0.18,47316.0,47310.0,0.88909344]
[1641208691478,0.38440628,47319.0,47310.0,0.88909344]
[1641208692381,0.75240628,47319.0,47310.0,0.88909344]
[1641208693194,0.57240628,47319.0,47310.0,0.88909344]
[1641208693394,0.75240628,47319.0,47310.0,0.88909344]
[1641208693595,0.14033567,47314.0,47310.0,0.88909344]
[1641208694296,0.32433567,47314.0,47310.0,0.09]
[1641208695498,0.32433567,47314.0,47305.0,0.91023224]
[1641208695699,0.83997398,47312.0,47311.0,0.88909344]
[1641208696298,0.186,47312.0,47311.0,1.04509344]
[1641208696499,0.186,47312.0,47311.0,0.74382081]
[1641208697598,1.19996283,47313.0,47311.0,0.58782081]
[1641208697798,1.19996283,47313.0,47310.0,0.58782081]
[1641208698199,1.19996283,47313.0,47312.0,0.35260604]
[1641208698398,1.38996283,47313.0,47312.0,0.35260604]
[1641208699700,0.19,47313.0,47312.0,0.35260604]
[1641208700701,1.38999521,47313.0,47312.0,0.35260604]
[1641208701203,0.19,47313.0,47312.0,0.35260604]
[1641208701602,0.14033567,47314.0,47312.0,0.35260604]
[1641208701803,0.18,47313.0,47312.0,0.35260604]
[1641208702406,0.187,47313.0,47312.0,0.35260604]
[1641208703004,0.27705951,47313.0,47311.0,0.35260604]
[1641208703606,0.09005951,47313.0,47311.0,0.35260604]
[1641208703805,0.09005951,47312.0,47310.0,0.35260604]
[1641208704506,0.27705951,47312.0,47310.0,0.35260604]
[1641208704911,1.20031454,47311.0,47310.0,0.35260604]
[1641208705509,1.20031454,47311.0,47309.0,0.58782081]
[1641208705707,1.20031454,47313.0,47310.0,0.58782081]
[1641208706507,1.38831454,47313.0,47310.0,0.58782081]
[1641208706707,1.47837405,47313.0,47312.0,0.35301598]
[1641208707408,1.47837405,47313.0,47311.0,0.58782081]
[1641208707807,1.29037405,47313.0,47311.0,0.58782081]
[1641208708308,0.09005951,47312.0,47311.0,0.58782081]
[1641208708509,0.09005951,47312.0,47310.0,0.58782081]
[1641208709813,1.20031454,47311.0,47308.0,0.58782081]
[1641208710413,1.20031454,47310.0,47309.0,0.58782081]
[1641208711012,1.38031454,47310.0,47309.0,0.58782081]
[1641208711212,1.38052593,47310.0,47309.0,0.58782081]
[1641208711811,0.32054706,47310.0,47309.0,0.58782081]
[1641208712027,0.32054706,47310.0,47308.0,0.58782081]
[1641208712213,0.32033567,47310.0,47308.0,0.58782081]
[1641208712413,0.50633567,47310.0,47308.0,0.58782081]
[1641208712914,2.03649231,47310.0,47304.0,1.17613662]
[1641208713114,0.18,47305.0,47302.0,0.58782081]
[1641208713315,0.08607,47305.0,47302.0,0.58782081]
[1641208713516,0.26607,47305.0,47302.0,0.58782081]
[1641208713915,0.14033567,47304.0,47302.0,0.58782081]
[1641208714316,0.23039518,47304.0,47302.0,0.58782081]
[1641208714517,1.20066715,47303.0,47302.0,0.58782081]
[1641208715319,0.09005951,47303.0,47302.0,0.58782081]
[1641208716517,0.27805951,47303.0,47302.0,0.58782081]
[1641208716916,0.27805951,47303.0,47300.0,0.58782081]
[1641208717117,0.18,47301.0,47300.0,0.58782081]
[1641208717317,0.09005951,47302.0,47299.0,0.58782081]
[1641208718218,0.09005951,47302.0,47299.0,1.41111645]
[1641208718419,1.20067799,47301.0,47300.0,0.58782081]
[1641208719820,1.2907375,47301.0,47300.0,0.58782081]
[1641208720522,1.4797375,47301.0,47300.0,0.58782081]
[1641208720721,0.189,47301.0,47300.0,0.58782081]
[1641208720923,0.189,47301.0,47299.0,0.58782081]
[1641208722120,0.189,47301.0,47298.0,0.82329564]
[1641208722422,0.28205951,47301.0,47300.0,0.84835371]
[1641208723024,0.192,47301.0,47299.0,0.82329564]
[1641208723422,0.192,47301.0,47297.0,1.17613662]
[1641208723624,0.192,47301.0,47297.0,0.5887541]
[1641208723823,0.35986331,47302.0,47297.0,0.5887541]
[1641208724433,0.55186331,47302.0,47297.0,0.5887541]
[1641208724628,0.192,47302.0,47299.0,0.35319303]
[1641208725727,0.53986331,47303.0,47299.0,0.35319303]
[1641208726428,0.72986331,47303.0,47299.0,0.35319303]
[1641208727029,0.18,47300.0,47297.0,0.94194713]
[1641208727229,0.18,47300.0,47297.0,0.35319303]
[1641208727428,0.35986331,47301.0,47297.0,0.35319303]
[1641208728034,0.35986331,47300.0,47296.0,0.35319303]
[1641208729631,0.53986331,47300.0,47296.0,0.35319303]
[1641208730033,0.35986331,47300.0,47296.0,0.35319303]
[1641208730635,0.54886331,47300.0,47296.0,0.35319303]
[1641208731334,0.72886331,47300.0,47296.0,0.35319303]
[1641208731535,0.54886331,47300.0,47296.0,0.35319303]
[1641208731935,0.35986331,47300.0,47296.0,0.35319303]
[1641208732535,0.54986331,47300.0,47296.0,0.35319303]
[1641208732936,0.19,47300.0,47297.0,0.35319303]
[1641208733940,0.72986331,47300.0,47296.0,0.35319303]
[1641208734540,0.91886331,47300.0,47296.0,0.35319303]
[1641208734740,0.009794,47299.0,47296.0,0.35319303]
[1641208734942,0.18,47297.0,47296.0,0.35319303]
[1641208735645,0.18,47297.0,47294.0,0.5887541]
[1641208735844,0.18,47297.0,47293.0,0.35319303]
[1641208736143,0.14033567,47295.0,47293.0,0.35319303]
[1641208736947,0.009794,47294.0,47293.0,0.35319303]
[1641208737147,0.03094574,47294.0,47290.0,0.82329564]
[1641208737347,0.18,47291.0,47290.0,0.82329564]
[1641208737547,0.03094574,47294.0,47290.0,0.82329564]
[1641208737746,0.18,47291.0,47288.0,1.17613662]
[1641208737946,0.18,47289.0,47286.0,0.59008298]
[1641208738149,0.18,47292.0,47286.0,0.59008298]
[1641208738346,0.14033567,47287.0,47286.0,0.59008298]
[1641208739347,0.14033567,47287.0,47283.0,1.17613662]
[1641208739548,0.14033567,47287.0,47283.0,2.46903108]
[1641208739747,0.14033567,47287.0,47286.0,1.17613662]
[1641208739748,1.34100612,47287.0,47286.0,1.17613662]
[1641208740350,1.34200612,47287.0,47286.0,1.17613662]
[1641208740550,1.52700612,47287.0,47286.0,1.17613662]
[1641208741554,1.61710486,47287.0,47286.0,1.17613662]
[1641208741754,1.43110486,47287.0,47286.0,1.17613662]
[1641208742356,1.43110486,47287.0,47283.0,1.29289446]
[1641208742555,0.41743441,47287.0,47283.0,1.29289446]
[1641208743156,1.29076919,47286.0,47285.0,1.18357438]
[1641208743558,1.30056319,47286.0,47285.0,1e-08]
[1641208743764,1.30056319,47286.0,47281.0,1.29289446]
[1641208744361,0.14033567,47282.0,47281.0,1.29289446]
[1641208745564,0.23043441,47282.0,47281.0,1.29289446]
[1641208745764,0.23043441,47282.0,47277.0,1.41099514]
[1641208745765,0.23043441,47282.0,47280.0,1.29289446]
[1641208746564,0.42243441,47282.0,47280.0,1.29289446]